Cogmind - Beta 11 X7 @@@ ROGUE MODE // 2021.08.27 @ 20:21:09 Player: LU-1G1 Result: Self-destructed Performance ------------- Evolutions (6) 3000 Regions Visited (16) 3200 Robots Destroyed (60) 300 Value Destroyed (1368) 1368 Prototype IDs (16) 320 Alien Tech Used (0) 0 Bonus (1021) 1021 TOTAL SCORE: 9209 Bonus ------- High Alert Combat Kills 33 Follower Combat Kills 88 Met Data Miner 300 Met Zhirov 300 Read Decrypted Archives 300 Cogmind --------- Core Integrity 363/1150 Matter 57/300 Energy 100/100 System Corruption 0% Temperature Cool (0) Movement Core (50) Location -4/Hub_04(d) Parts ------- > --- POWER (1) -------- (None) > --- PROPULSION (3) --- (None) > --- UTILITY (13) ----- Machine Analyzer Advanced Visual Processing Unit Improved Signal Interpreter Advanced Signal Interpreter Advanced Terrain Scan Processor Launcher Guidance Computer System Shield System Shield > --- WEAPON (2) ------- (None) > --- INVENTORY (5) ---- Improved Flight Unit Improved Cesium-ion Thruster Field Propulsion Array High-capacity Matter Pod (94) Peak State ------------ > --- POWER ------------ Micro Nuclear Core > --- PROPULSION ------- Improved Flight Unit Improved Cesium-ion Thruster Cooled Nuclear Pulse Thruster > --- UTILITY ---------- Machine Analyzer Advanced Visual Processing Unit Experimental Sensor Array Improved Signal Interpreter Advanced Signal Interpreter Advanced Terrain Scan Processor Launcher Guidance Computer Improved Utility Shielding Hardened Light Armor Plating System Shield System Shield > --- WEAPON ----------- (None) > --- INVENTORY -------- Improved Flight Unit Improved Cesium-ion Thruster Field Propulsion Drive High-capacity Matter Pod [Rating: 62] Favorites ----------- Power Light Ion Engine Engine Light Ion Engine Power Core Light Nuclear Core Propulsion Light Treads Treads Light Treads Leg Aluminum Leg Wheel Compact Wheel Flight Unit Improved Flight Unit Utility Machine Analyzer Device Improved Terrain Scanner Storage Large Storage Unit Processor Machine Analyzer Hackware System Shield Protection Hardened Light Armor Plating Weapon Heavy EM Shotgun Energy Gun Heavy EM Shotgun Ballistic Gun Assault Rifle Launcher Mini Grenade Launcher Impact Weapon Hammer Build | -11 -10 -10 -9 -8 -7 -7 -7 -7 -6 -6 -5 -4 -4 -4 -4 -4 ------- Run | Scr Mat Min Mat Mat Fac Low Low Dat Pro Fac Fac Fac Ext Cet Arc Hub Slots Evolved 12 | . . . 2 2 2 . . . . 2 2 2 . . . . Power . | . . . . . . . . . . . . . . . . . Propulsion 1 | . . . 1 . . . . . . . . . . . . . Utility 11 | . . . 1 2 2 . . . . 2 2 2 . . . . Weapon . | . . . . . . . . . . . . . . . . . Parts Attached 83 | 7 13 . 14 15 17 . . 1 . 9 5 2 . . . . Power 7 | 1 1 . 2 1 1 . . . . . 1 . . . . . Engine 5 | 1 1 . 2 1 . . . . . . . . . . . . Core 2 | . . . . . 1 . . . . . 1 . . . . . Reactor . | . . . . . . . . . . . . . . . . . Propulsion 32 | 2 7 . 6 3 6 . . . . 6 1 1 . . . . Treads 9 | . 2 . 4 3 . . . . . . . . . . . . Leg 8 | 2 5 . . . . . . . . 1 . . . . . . Wheel 1 | . . . 1 . . . . . . . . . . . . . Hover . | . . . . . . . . . . . . . . . . . Flight 14 | . . . 1 . 6 . . . . 5 1 1 . . . . Utility 24 | 2 1 . 3 5 6 . . . . 3 3 1 . . . . Device 4 | 1 . . . 1 2 . . . . . . . . . . . Storage 3 | 1 1 . 1 . . . . . . . . . . . . . Processor 7 | . . . 1 2 . . . . . 2 1 1 . . . . Hackware 3 | . . . . 1 1 . . . . . 1 . . . . . Protection 7 | . . . 1 1 3 . . . . 1 1 . . . . . Artifact . | . . . . . . . . . . . . . . . . . Weapon 20 | 2 4 . 3 6 4 . . 1 . . . . . . . . Energy Gun 10 | 1 3 . 2 4 . . . . . . . . . . . . Energy Cannon . | . . . . . . . . . . . . . . . . . Ballistic Gun 5 | 1 1 . 1 2 . . . . . . . . . . . . Ballistic Cannon . | . . . . . . . . . . . . . . . . . Launcher 2 | . . . . . 1 . . 1 . . . . . . . . Special Weapon . | . . . . . . . . . . . . . . . . . Impact Weapon 3 | . . . . . 3 . . . . . . . . . . . Slashing Weapon . | . . . . . . . . . . . . . . . . . Piercing Weapon . | . . . . . . . . . . . . . . . . . Special Melee Weapon . | . . . . . . . . . . . . . . . . . Unidentified Prototypes 7 | . . . 2 1 2 . . . . 1 1 . . . . . Parts Lost 22 | . 2 . . 7 2 . . . . 3 . 4 1 2 1 . Power 4 | . 1 . . 1 . . . . . 1 . . . 1 . . Propulsion 7 | . . . . 2 . . . . . 1 . 1 1 1 1 . Utility 6 | . . . . 2 1 . . . . . . 3 . . . . Weapon 5 | . 1 . . 2 1 . . . . 1 . . . . . . Highest Loss Streak 6 | . 2 . . 6 2 . . . . 3 . 4 1 2 1 . Average Slot Usage (%) 88 | . 90 100 95 94 88 84 84 78 84 74 66 75 60 52 47 . Engine 6 | . 6 14 11 8 . . . . . . . . . . . . Core 1 | . . . . . 6 7 7 7 7 5 1 5 5 3 . . Treads 16 | . 19 28 28 22 2 . . . . . . . . . . . Leg 1 | . 8 . . . . . . . . . . . . . . . Flight 6 | . . . . . 20 23 23 23 23 19 17 15 12 6 5 . Device 7 | . 14 14 6 5 6 7 7 7 7 6 5 4 . . . . Storage 7 | . 14 14 11 9 1 . . . . . . . . . . . Processor 11 | . . . 10 14 15 15 15 15 15 15 23 30 31 31 31 . Hackware 4 | . . . . 9 13 7 7 7 7 6 5 10 10 10 10 . Protection 5 | . . . 4 4 13 15 15 15 15 13 11 8 . . . . Energy Gun 9 | . 13 14 17 10 . . . . . . . . . . . . Ballistic Gun 5 | . 14 14 4 6 . . . . . . . . . . . . Naked Turns . | . . . . . . . . . . . . . . . . . Heaviest Build 43 | 13 28 28 40 43 35 14 14 14 14 14 14 14 6 6 . . Greatest Support 60 | 20 40 40 60 60 60 15 15 15 15 20 17 18 18 13 6 . Greatest Overweight (x) 4 | 2 2 . 2 2 2 . . . . 4 . . . . . . Average Overweight (x) . | . . . . . . . . . . . . . . . . . Largest Inventory Capacity 15 | 8 15 15 15 15 15 5 5 5 5 5 5 5 5 5 5 . Average Capacity 11 | 7 14 15 15 15 6 5 5 5 5 5 5 5 5 5 5 . Most Carried 15 | 7 15 15 15 15 15 4 5 5 5 5 5 5 5 5 5 . Average Carried 11 | 2 12 14 14 14 5 4 4 5 5 5 4 4 5 5 5 . Final Capacity 15 | 8 15 15 15 15 5 5 5 5 5 5 5 5 5 5 5 5 Final Carried 15 | 7 15 15 15 15 4 4 5 5 5 5 5 5 5 5 5 5 Class Distribution -------------------- 47% | Mutant 32% | Scavenger-Mutant 12% | Hacker-Mutant 4% | Hacker-Scout 3% | Scout Dominant Class ---------------- Mutant | -10/Materials Mutant | -10/Mines Scavenger-Mutant | -9/Materials Scavenger-Mutant | -8/Materials Hacker-Mutant | -7/Factory Mutant | -7/Lower Caves Mutant | -7/Lower Caves Mutant | -7/Data Miner Mutant | -6/Proximity Caves Mutant | -6/Factory Scout | -5/Factory Hacker-Scout | -4/Factory Hacker-Mutant | -4/Extension Hacker-Mutant | -4/Cetus Hacker-Mutant | -4/Archives Hacker-Mutant | -4/Hub_04(d) Resources | -11 -10 -10 -9 -8 -7 -7 -7 -7 -6 -6 -5 -4 -4 -4 -4 -4 ----------- Run | Scr Mat Min Mat Mat Fac Low Low Dat Pro Fac Fac Fac Ext Cet Arc Hub Matter Collected 1247 | 279 333 10 259 186 106 5 69 . . . . . . . . . Remotely . | . . . . . . . . . . . . . . . . . Salvage Created 2425 | 120 497 . 1153 570 85 . . . . . . . . . . . Parts 150 | 6 30 . 72 38 4 . . . . . . . . . . . Haulers Intercepted 5 | . 2 . 3 . . . . . . . . . . . . . Recyclers Shooed 1 | . . . . 1 . . . . . . . . . . . . Parts Field Recycled . | . . . . . . . . . . . . . . . . . Retrieved Matter . | . . . . . . . . . . . . . . . . . Parts Self-Destructed . | . . . . . . . . . . . . . . . . . Prevented 2 | . . . . . . . 2 . . . . . . . . . Kills | -11 -10 -10 -9 -8 -7 -7 -7 -7 -6 -6 -5 -4 -4 -4 -4 -4 ------- Run | Scr Mat Min Mat Mat Fac Low Low Dat Pro Fac Fac Fac Ext Cet Arc Hub Combat Hostiles Destroyed 37 | . 10 . 16 11 . . . . . . . . . . . . Guns 33 | . 8 . 15 10 . . . . . . . . . . . . AOE 3 | . 2 . 1 . . . . . . . . . . . . . Classes Destroyed 11 | 2 4 . 4 . 1 . . . . . . . . . . . Worker 6 | . 1 . 4 1 . . . . . . . . . . . . Builder 1 | . . . . . 1 . . . . . . . . . . . Tunneler 2 | 1 . . 1 . . . . . . . . . . . . . Hauler 5 | . 2 . 3 . . . . . . . . . . . . . Recycler 4 | 1 . . 2 . 1 . . . . . . . . . . . Mechanic 1 | . . . 1 . . . . . . . . . . . . . Operator 1 | . . . 1 . . . . . . . . . . . . . Watcher 3 | . . . 2 1 . . . . . . . . . . . . Swarmer 11 | . 3 . 5 3 . . . . . . . . . . . . Grunt 18 | . 7 . 8 3 . . . . . . . . . . . . Sentry 8 | . . . 3 5 . . . . . . . . . . . . Best Kill Streak 5 | 2 3 . 4 5 2 . . . . . . . . . . . Combat Bots Only 4 | . 3 . 3 4 . . . . . . . . . . . . Max Kills in Single Turn 2 | 1 1 . 2 2 2 . . . . . . . . . . . Gunslinging 1 | . . . . 1 . . . . . . . . . . . . Exploded 1 | . 1 . 1 . . . . . . . . . . . . . Melee . | . . . . . . . . . . . . . . . . . Uniques/NPCs Destroyed . | . . . . . . . . . . . . . . . . . Combat | -11 -10 -10 -9 -8 -7 -7 -7 -7 -6 -6 -5 -4 -4 -4 -4 -4 -------- Run | Scr Mat Min Mat Mat Fac Low Low Dat Pro Fac Fac Fac Ext Cet Arc Hub Damage Taken 4182 | . 468 . 649 977 230 55 24 . 16 527 . 329 168 199 540 . Core 1485 | . 110 . 85 154 102 . . . 6 241 . 101 107 73 506 . Absorbed by Shields . | . . . . . . . . . . . . . . . . . Core Remaining (%) 80 | 100 . 56 78 72 . . . . 84 71 100 . . . . . Volleys Fired 131 | 3 31 . 56 29 2 1 8 . 1 . . . . . . . Largest 2 | 2 2 . 2 2 1 1 1 . 1 . . . . . . . Hottest 100 | 60 60 . 100 100 30 30 30 . 30 . . . . . . . Shots Fired 237 | 5 61 . 112 47 2 1 8 . 1 . . . . . . . Gun 225 | 5 61 . 112 47 . . . . . . . . . . . . Cannon . | . . . . . . . . . . . . . . . . . Launcher 12 | . . . . . 2 1 8 . 1 . . . . . . . Special . | . . . . . . . . . . . . . . . . . Kinetic 69 | 3 31 . 22 13 . . . . . . . . . . . . Thermal . | . . . . . . . . . . . . . . . . . Explosive 12 | . . . . . 2 1 8 . 1 . . . . . . . Electromagnetic 156 | 2 30 . 90 34 . . . . . . . . . . . . Robot Hit Streak 24 | 1 7 . 24 12 . . . . . . . . . . . . Robot Miss Streak 3 | 2 2 . 3 2 . . . . . . . . . . . . Penetration Max . | . . . . . . . . . . . . . . . . . Secondary Targets 3 | . 1 . 1 1 . . . . . . . . . . . . Max Gunslinging Chain 1 | . 1 . 1 1 . . . . . . . . . . . . Shots Hit Robots 170 | 2 43 . 85 40 . . . . . . . . . . . . Core Hits 97 | 2 22 . 45 25 3 . . . . . . . . . . . Critical Kills . | . . . . . . . . . . . . . . . . . Critical Parts Destroyed . | . . . . . . . . . . . . . . . . . Critical Strikes . | . . . . . . . . . . . . . . . . . Melee Attacks 5 | . . . . . 5 . . . . . . . . . . . Impact 5 | . . . . . 5 . . . . . . . . . . . Slashing . | . . . . . . . . . . . . . . . . . Piercing . | . . . . . . . . . . . . . . . . . Sneak Attacks . | . . . . . . . . . . . . . . . . . Combat Hostiles . | . . . . . . . . . . . . . . . . . Follow-up Attacks . | . . . . . . . . . . . . . . . . . Damage Inflicted 3842 | 53 687 . 1916 891 295 . . . . . . . . . . . Guns 3005 | 53 561 . 1643 748 . . . . . . . . . . . . Cannons . | . . . . . . . . . . . . . . . . . Explosions 784 | . 110 . 239 140 295 . . . . . . . . . . . Melee . | . . . . . . . . . . . . . . . . . Ramming 53 | . 16 . 34 3 . . . . . . . . . . . . Kinetic 553 | 23 244 . 171 115 . . . . . . . . . . . . Thermal 741 | . 110 . 239 140 252 . . . . . . . . . . . Explosive 43 | . . . . . 43 . . . . . . . . . . . Electromagnetic 2452 | 30 317 . 1472 633 . . . . . . . . . . . . Impact . | . . . . . . . . . . . . . . . . . Slashing . | . . . . . . . . . . . . . . . . . Piercing . | . . . . . . . . . . . . . . . . . Highest Corruption 6 | . . . . 2 6 6 6 6 6 . . . . . . . Average Corruption 4 | . . . . 2 6 6 6 6 6 . . . . . . . Corruption Purged . | . . . . . . . . . . . . . . . . . Effects 12 | . . . . 3 1 2 3 1 2 . . . . . . . Message Errors 3 | . . . . 2 . . . . 1 . . . . . . . Matter Fused 3 | . . . . . . 1 2 . . . . . . . . . Heat Flow Errors 3 | . . . . 1 . . . 1 1 . . . . . . . Energy Discharges 1 | . . . . . . 1 . . . . . . . . . . Data Loss (minor) 2 | . . . . . 1 . 1 . . . . . . . . . Overload Shots . | . . . . . . . . . . . . . . . . . Overflow Damage 34 | . . . 18 . 16 . . . . . . . . . . . Projectiles . | . . . . . . . . . . . . . . . . . Explosions 34 | . . . 18 . 16 . . . . . . . . . . . Melee . | . . . . . . . . . . . . . . . . . Knockbacks . | . . . . . . . . . . . . . . . . . Impact . | . . . . . . . . . . . . . . . . . Kinetic . | . . . . . . . . . . . . . . . . . Secondary . | . . . . . . . . . . . . . . . . . Self-Inflicted Damage 227 | . 76 . 49 36 41 . 25 . . . . . . . . . Shots 7 | . 2 . 2 1 1 . 1 . . . . . . . . . Rammed 5 | . 1 . 3 1 . . . . . . . . . . . . Targets Rammed 7 | . 2 . 4 1 . . . . . . . . . . . . Kicked 1 | . 1 . . . . . . . . . . . . . . . Crushed 1 | . . . 1 . . . . . . . . . . . . . Highest Temperature 261 | . 60 . 261 197 . 2 . 211 112 11 . . . . . . Average Temperature 67 | . 25 . 79 59 . 2 . 108 57 6 . . . . . . Received Heat Transfer 1092 | . 213 . 258 414 9 12 . . . 111 . . 27 36 12 . Siege Activations . | . . . . . . . . . . . . . . . . . Robots Corrupted 2 | . . . 1 1 . . . . . . . . . . . . Combat Hostiles 1 | . . . . 1 . . . . . . . . . . . . Parts Fried 15 | . 2 . 9 4 . . . . . . . . . . . . Impact Corruptions . | . . . . . . . . . . . . . . . . . Robots Melted . | . . . . . . . . . . . . . . . . . Combat Hostiles . | . . . . . . . . . . . . . . . . . Parts Melted . | . . . . . . . . . . . . . . . . . Heat Transferred 1050 | . 150 . 400 150 350 . . . . . . . . . . . Parts Sabotaged . | . . . . . . . . . . . . . . . . . Parts Stolen . | . . . . . . . . . . . . . . . . . Parts Stripped . | . . . . . . . . . . . . . . . . . Power Chain Reactions 9 | . 3 . 4 2 . . . . . . . . . . . . Missiles Intercepted . | . . . . . . . . . . . . . . . . . Alert | -11 -10 -10 -9 -8 -7 -7 -7 -7 -6 -6 -5 -4 -4 -4 -4 -4 ------- Run | Scr Mat Min Mat Mat Fac Low Low Dat Pro Fac Fac Fac Ext Cet Arc Hub Peak Influence 750 | 10 243 66 377 501 351 . . . . 750 404 240 158 97 45 . Initial 357 | . 6 66 25 152 156 . . . . . 357 197 98 82 30 11 Average 204 | 3 139 66 199 364 196 . . . . 259 375 218 124 81 32 . Maximum Alert Level 3 | . 1 . 1 2 1 . . . . 3 2 1 . . . . Low Security (%) 58 | 100 87 100 51 10 59 . . . . 70 . 23 100 100 100 . Level 1 33 | . 12 . 48 51 40 . . . . 3 94 76 . . . . Level 2 6 | . . . . 37 . . . . . 6 5 . . . . . Level 3 1 | . . . . . . . . . . 19 . . . . . . Level 4 . | . . . . . . . . . . . . . . . . . Level 5 . | . . . . . . . . . . . . . . . . . High Security . | . . . . . . . . . . . . . . . . . Max Security . | . . . . . . . . . . . . . . . . . Squads Dispatched 9 | . 3 . 1 1 2 . . . . 1 1 . . . . . Investigation 4 | . 2 . . . . . . . . 1 1 . . . . . Extermination 1 | . . . . . 1 . . . . . . . . . . . Reinforcement 3 | . 1 . 1 . 1 . . . . . . . . . . . Assault . | . . . . . . . . . . . . . . . . . Garrison 1 | . . . . 1 . . . . . . . . . . . . Intercept . | . . . . . . . . . . . . . . . . . Construction Impeded 1 | . . . . . 1 . . . . . . . . . . . Haulers Reinforced . | . . . . . . . . . . . . . . . . . Active Scanning Responses . | . . . . . . . . . . . . . . . . . Cargo Convoy Interrupts . | . . . . . . . . . . . . . . . . . Stealth | -11 -10 -10 -9 -8 -7 -7 -7 -7 -6 -6 -5 -4 -4 -4 -4 -4 --------- Run | Scr Mat Min Mat Mat Fac Low Low Dat Pro Fac Fac Fac Ext Cet Arc Hub Distress Signals 5 | . 1 . . 2 . . . . . 1 . . . 1 . . Communications Jammed . | . . . . . . . . . . . . . . . . . Distress Signals . | . . . . . . . . . . . . . . . . . Times Spotted 125 | . 13 . 34 21 5 1 . . 1 25 1 3 4 5 12 . Peak Tracking Total 12 | . 4 . 4 6 2 1 . . 1 12 1 2 5 5 10 . Tactical Retreats 6 | . . . 1 2 1 . . . . 1 . . . . 1 . Traps | -11 -10 -10 -9 -8 -7 -7 -7 -7 -6 -6 -5 -4 -4 -4 -4 -4 ------- Run | Scr Mat Min Mat Mat Fac Low Low Dat Pro Fac Fac Fac Ext Cet Arc Hub Traps Triggered 4 | . 2 . . 1 . . . . . 1 . . . . . . Indirectly . | . . . . . . . . . . . . . . . . . Trap Hack Attempts . | . . . . . . . . . . . . . . . . . Triggered . | . . . . . . . . . . . . . . . . . Disarmed . | . . . . . . . . . . . . . . . . . Reprogrammed . | . . . . . . . . . . . . . . . . . Reused . | . . . . . . . . . . . . . . . . . Traps Extracted . | . . . . . . . . . . . . . . . . . Installed . | . . . . . . . . . . . . . . . . . Triggered 1 | . . . . . . . 1 . . . . . . . . . Machines | -11 -10 -10 -9 -8 -7 -7 -7 -7 -6 -6 -5 -4 -4 -4 -4 -4 ---------- Run | Scr Mat Min Mat Mat Fac Low Low Dat Pro Fac Fac Fac Ext Cet Arc Hub Machines Disabled 7 | . 2 . 2 . 3 . . . . . . . . . . . Max in Single Turn 3 | . 1 . 1 . 3 . . . . . . . . . . . Garrison Access 4 | . . . . 1 1 . . . . 2 . . . . . . Machines Sabotaged . | . . . . . . . . . . . . . . . . . Garrisons Compromised . | . . . . . . . . . . . . . . . . . Overloaded Fab Kills . | . . . . . . . . . . . . . . . . . Fab Network Shutdowns 1 | . . . . . . . . . . 1 . . . . . . Hacking | -11 -10 -10 -9 -8 -7 -7 -7 -7 -6 -6 -5 -4 -4 -4 -4 -4 --------- Run | Scr Mat Min Mat Mat Fac Low Low Dat Pro Fac Fac Fac Ext Cet Arc Hub Machines Accessed 37 | . 3 . 6 4 5 . . 4 . 8 3 3 . . 1 . Terminals 20 | . 2 . 5 3 1 . . . . 3 3 3 . . . . Fabricators 2 | . . . . . 1 . . . . 1 . . . . . . Repair Stations 4 | . . . 1 . 2 . . . . 1 . . . . . . Recycling Units 2 | . 1 . . . . . . . . 1 . . . . . . Scanalyzers . | . . . . . . . . . . . . . . . . . Garrison Access 4 | . . . . 1 1 . . . . 2 . . . . . . Total Hacks 151 | . 11 . 22 10 18 . . 26 . 23 8 8 . . 25 . Successful 93 | . 2 . 13 2 8 . . 26 . 10 3 4 . . 25 . Failed 58 | . 9 . 9 8 10 . . . . 13 5 4 . . . . Catastrophic 9 | . 1 . . 1 2 . . . . 1 2 2 . . . . Database Lockouts . | . . . . . . . . . . . . . . . . . Manual 43 | . 11 . 6 4 7 . . . . 9 3 3 . . . . Terminals 68 | . 10 . 14 7 9 . . . . 12 8 8 . . . . Fabricators 3 | . . . . . 1 . . . . 2 . . . . . . Repair Stations 17 | . . . 8 . 6 . . . . 3 . . . . . . Recycling Units 3 | . 1 . . . . . . . . 2 . . . . . . Scanalyzers . | . . . . . . . . . . . . . . . . . Garrison Access 9 | . . . . 3 2 . . . . 4 . . . . . . Terminal Hacks 67 | . 1 . 5 1 2 . . 26 . 1 3 3 . . 25 . Record 36 | . . . . . . . . 11 . . . . . . 25 . Part Schematic 8 | . 1 . . . . . . 7 . . . . . . . . Robot Schematic 5 | . . . . . . . . 5 . . . . . . . . Robot Analysis 1 | . . . . . . . . . . . 1 . . . . . Prototype ID Bank 3 | . . . . . . . . 3 . . . . . . . . Open Door 1 | . . . . . . . . . . . . 1 . . . . Level Access Points 1 | . . . . . . . . . . . 1 . . . . . Branch Access Points 3 | . . . 1 . . . . . . . 1 1 . . . . Terminal Index 3 | . . . 1 . 1 . . . . . . 1 . . . . Locate Traps 1 | . . . . . 1 . . . . . . . . . . . Transport Status 1 | . . . 1 . . . . . . . . . . . . . Hauler Manifests 1 | . . . 1 . . . . . . . . . . . . . Zone Layout 3 | . . . 1 1 . . . . . 1 . . . . . . Fabricator Hacks 1 | . . . . . . . . . . 1 . . . . . . Build 1 | . . . . . . . . . . 1 . . . . . . Repair Station Hacks 11 | . . . 6 . 4 . . . . 1 . . . . . . Scan Component 6 | . . . 3 . 2 . . . . 1 . . . . . . Repair 5 | . . . 3 . 2 . . . . . . . . . . . Recycling Unit Hacks 1 | . . . . . . . . . . 1 . . . . . . Retrieve Components 1 | . . . . . . . . . . 1 . . . . . . Scanalyzer . | . . . . . . . . . . . . . . . . . Garrison Access Hacks 4 | . . . . 1 1 . . . . 2 . . . . . . Seal Access 4 | . . . . 1 1 . . . . 2 . . . . . . Unauthorized Hacks 9 | . 1 . 2 . 1 . . . . 4 . 1 . . . . Terminals 6 | . . . 2 . . . . . . 3 . 1 . . . . Track 1 | . . . 1 . . . . . . . . . . . . . Botnet 3 | . . . . . . . . . . 2 . 1 . . . . Operators 2 | . . . 1 . . . . . . 1 . . . . . . Fabricators 2 | . . . . . 1 . . . . 1 . . . . . . Prioritize 1 | . . . . . . . . . . 1 . . . . . . Haulers 1 | . . . . . 1 . . . . . . . . . . . Repair Stations . | . . . . . . . . . . . . . . . . . Recycling Units 1 | . 1 . . . . . . . . . . . . . . . Tunnel 1 | . 1 . . . . . . . . . . . . . . . Scanalyzers . | . . . . . . . . . . . . . . . . . Garrison Access . | . . . . . . . . . . . . . . . . . Data Cores Recovered 1 | . . . 1 . . . . . . . . . . . . . Used . | . . . . . . . . . . . . . . . . . Hacking Detections 25 | . 2 . 6 4 3 . . . . 6 3 1 . . . . Full Trace Events 4 | . 1 . . 1 . . . . . 1 1 . . . . . Feedback Events . | . . . . . . . . . . . . . . . . . Feedback Blocked . | . . . . . . . . . . . . . . . . . Robot Schematics Acquired 5 | . . . . . . . . 5 . . . . . . . . Robots Built . | . . . . . . . . . . . . . . . . . Matter 219 | . . . . . . . . . . 219 . . . . . . Time 116 | . . . . . . . . . . 116 . . . . . . Total Robot Build Rating . | . . . . . . . . . . . . . . . . . Part Schematics Acquired 8 | . 1 . . . . . . 7 . . . . . . . . Parts Built . | . . . . . . . . . . . . . . . . . Matter . | . . . . . . . . . . . . . . . . . Time . | . . . . . . . . . . . . . . . . . Total Part Build Rating . | . . . . . . . . . . . . . . . . . Parts Repaired 5 | . . . 3 . 2 . . . . . . . . . . . Time 157 | . . . 78 . 79 . . . . . . . . . . . Parts Recycled . | . . . . . . . . . . . . . . . . . Recycled Matter . | . . . . . . . . . . . . . . . . . Retrieved Matter . | . . . . . . . . . . . . . . . . . Retrieved Components 2 | . . . . . . . . . . 2 . . . . . . Parts Scanalyzed . | . . . . . . . . . . . . . . . . . Part Schematics Acquired . | . . . . . . . . . . . . . . . . . Parts Damaged . | . . . . . . . . . . . . . . . . . Bothacking | -11 -10 -10 -9 -8 -7 -7 -7 -7 -6 -6 -5 -4 -4 -4 -4 -4 ------------ Run | Scr Mat Min Mat Mat Fac Low Low Dat Pro Fac Fac Fac Ext Cet Arc Hub Used RIF Installer . | . . . . . . . . . . . . . . . . . Robots Hacked . | . . . . . . . . . . . . . . . . . Non-combat . | . . . . . . . . . . . . . . . . . Combat . | . . . . . . . . . . . . . . . . . Robot Hacks Applied . | . . . . . . . . . . . . . . . . . Relay Couplers Released 2 | . . . . 2 . . . . . . . . . . . . Machine Destruction 2 | . . . . 2 . . . . . . . . . . . . Robots Rewired . | . . . . . . . . . . . . . . . . . Allies Hacked . | . . . . . . . . . . . . . . . . . Hacks Repelled . | . . . . . . . . . . . . . . . . . Allies | -11 -10 -10 -9 -8 -7 -7 -7 -7 -6 -6 -5 -4 -4 -4 -4 -4 -------- Run | Scr Mat Min Mat Mat Fac Low Low Dat Pro Fac Fac Fac Ext Cet Arc Hub Total Allies 3 | . . 2 . . . . . . 1 . . . . . . . Largest Group 2 | . . 2 2 . . . . . 1 1 . . . . . . Highest-Rated Group 95 | . . 43 43 . . . . . 95 95 . . . . . . Highest-Rated Ally 95 | . . 31 31 . . . . . 95 95 . . . . . . Total Orders . | . . . . . . . . . . . . . . . . . Ally Attacks 26 | . . . 7 . . . . . 1 18 . . . . . . Total Damage 740 | . . . 82 . . . . . . 658 . . . . . . Kills 8 | . . . 2 . . . . . . 6 . . . . . . Allies Corrupted . | . . . . . . . . . . . . . . . . . Allies Melted . | . . . . . . . . . . . . . . . . . Intel | -11 -10 -10 -9 -8 -7 -7 -7 -7 -6 -6 -5 -4 -4 -4 -4 -4 ------- Run | Scr Mat Min Mat Mat Fac Low Low Dat Pro Fac Fac Fac Ext Cet Arc Hub Robot Analysis Total 1 | . . . . . . . . . . . 1 . . . . . Derelict Logs Recovered 2 | . . 1 . . . . . . 1 . . . . . . . Drone Launches . | . . . . . . . . . . . . . . . . . Drone Recoveries . | . . . . . . . . . . . . . . . . . Exploration | -11 -10 -10 -9 -8 -7 -7 -7 -7 -6 -6 -5 -4 -4 -4 -4 -4 ------------- Run | Scr Mat Min Mat Mat Fac Low Low Dat Pro Fac Fac Fac Ext Cet Arc Hub Turns Passed 4114 | 91 729 263 1067 616 334 74 143 31 42 269 98 172 79 29 77 . Spaces Moved 4128 | 56 356 162 466 313 434 191 362 84 109 636 229 359 224 80 67 . Core 14 | 9 . . . . . . . . . 1 . . . . 4 . Treads 1092 | . 264 162 409 240 17 . . . . . . . . . . . Legs 139 | 47 92 . . . . . . . . . . . . . . . Wheels 130 | . . . 57 73 . . . . . . . . . . . . Hover . | . . . . . . . . . . . . . . . . . Flight 2753 | . . . . . 417 191 362 84 109 635 229 359 224 80 63 . Fastest Speed 27 | 50 120 160 130 115 32 34 34 34 34 27 30 30 34 35 35 . Average Speed 74 | 117 166 160 156 154 39 34 34 34 34 33 30 30 35 35 35 . Slowest Speed 280 | 150 280 160 160 260 174 34 34 34 34 250 30 34 37 37 50 . Overloaded Moves 14 | . . . . . . . . . . 14 . . . . . . Propulsion Burnouts . | . . . . . . . . . . . . . . . . . Robots Hopped 26 | . . . . . 2 4 1 . . 11 2 4 . 2 . . Cave-ins Triggered 1 | . . . . . 1 . . . . . . . . . . . Exploration Rate (%) 38 | 4 68 48 63 31 14 46 66 73 30 23 10 13 42 52 78 1 Regions Visited 16 Branch Regions 9 Pre-discovered Areas 2 | . 1 . . . . . . 1 . . . . . . . . Known Exits Taken 6 | . . . . . . . . . . 1 1 1 1 1 1 . Unknown Exits Taken 10 | 1 1 1 1 1 1 1 1 1 1 . . . . . . . Scrap Searched 2 | . . 1 . . . . 1 . . . . . . . . . Spaces Dug 1 | . . . . . 1 . . . . . . . . . . . Terrain Destroyed 180 | . 9 . 8 11 55 11 78 . 8 . . . . . . . Melee 1 | . . . . . 1 . . . . . . . . . . . Projectile . | . . . . . . . . . . . . . . . . . AOE 179 | . 9 . 8 11 54 11 78 . 8 . . . . . . . Terrain Rammed . | . . . . . . . . . . . . . . . . . Walls Destroyed . | . . . . . . . . . . . . . . . . . Machines Disabled . | . . . . . . . . . . . . . . . . . Actions | -11 -10 -10 -9 -8 -7 -7 -7 -7 -6 -6 -5 -4 -4 -4 -4 -4 --------- Run | Scr Mat Min Mat Mat Fac Low Low Dat Pro Fac Fac Fac Ext Cet Arc Hub Total 4880 | 73 425 166 703 394 589 194 372 85 112 677 254 417 223 77 119 . Wait 461 | . 11 3 128 28 116 7 3 . 3 32 19 58 . . 53 . Move 4064 | 55 355 161 465 312 429 182 359 83 108 616 224 350 223 76 66 . Hop 22 | . . . . . 2 4 1 . . 8 2 4 . 1 . . Pick Up 40 | 8 8 1 14 3 2 . 1 . . . 1 2 . . . . Fast Attach 47 | 6 4 . 7 10 7 . . 1 . 7 5 . . . . . Attach 16 | 1 1 . 1 2 9 . . . . . . 2 . . . . Detach 1 | . . . 1 . . . . . . . . . . . . . Swap 20 | . 8 . 6 3 1 . . . . 2 . . . . . . Drop 60 | . 5 1 21 6 16 . . 1 . 6 3 1 . . . . Fire 131 | 3 31 . 56 29 2 1 8 . 1 . . . . . . . Melee 5 | . . . . . 5 . . . . . . . . . . . Ram . | . . . . . . . . . . . . . . . . . Kick 1 | . 1 . . . . . . . . . . . . . . . Crush 6 | . 1 . 4 1 . . . . . . . . . . . . Escape Stasis . | . . . . . . . . . . . . . . . . . Rewire 6 | . . . . . . . . . . 6 . . . . . . Trap . | . . . . . . . . . . . . . . . . . Miscellaneous . | . . . . . . . . . . . . . . . . . Route ------- -11/Scrapyard -10/Materials (discovered 4 exits: *Mat x2 / [*Min x2]) -10/Mines -9/Materials (discovered 4 exits: *Mat x2 / *Min / Sto) -8/Materials -7/Factory -7/Lower Caves -7/Lower Caves -7/Data Miner -6/Proximity Caves -6/Factory -5/Factory (discovered 6 exits: *Fac x4 / Upp x2) -4/Factory (discovered 5 exits: *Res / Upp x2 / *Ext x2) -4/Extension (discovered 2 exits: *Res / *Cet) -4/Cetus -4/Archives (discovered 2 exits: *Hub x2) -4/Hub_04(d) History --------- Turn | Location | Event 15 | -11/Scrapyard | Discovered new exit (range 15) 92 | -11/Scrapyard | Entered Materials 325 | -10/Materials | Build established: Mutant 355 | -10/Materials | Discovered new exit (range 12) 442 | -10/Materials | Discovered new exit (range 5) 660 | -10/Materials | Discovered new exit (range 11) 748 | -10/Materials | Discovered new exit (range 16) 821 | -10/Materials | Entered Mines 884 | -10/Mines | Found a damaged Exp. Sensor Array with a note attached 910 | -10/Mines | Found Prototype Device 1065 | -10/Mines | Discovered new exit (range 12) 1068 | -10/Mines | Learned Materials garrison access intel 1084 | -10/Mines | Entered Materials 1084 | -9/Materials | Accompanied by 2 allies 1084 | -9/Materials | Evolved 2 slots: Propulsion x1, Utility x1 1089 | -9/Materials | Led the pair of lost Derelicts to an unsafe place 1188 | -9/Materials | Repaired Lgt. Treads 1216 | -9/Materials | Repaired Lgt. Treads 1243 | -9/Materials | Repaired EM Pulse Gun 1364 | -9/Materials | Identified exit to Mines 1364 | -9/Materials | Identified exit to Storage 1525 | -9/Materials | Build established: Scavenger-Mutant 1822 | -9/Materials | Discovered new exit (range 16) 2132 | -9/Materials | Discovered new exit (range 15) 2151 | -9/Materials | Entered another Materials area 2151 | -8/Materials | Evolved 2 slots: Utility x2 2152 | -8/Materials | Loaded intel: 1 garrison access location 2258 | -8/Materials | Garrison activated, responded to threat 2358 | -8/Materials | Lost 6 parts (1p2n2u1w) 2737 | -8/Materials | Discovered new exit (range 16) 2767 | -8/Materials | Entered Factory 2767 | -7/Factory | Evolved 2 slots: Utility x2 2805 | -7/Factory | Identified Exp. Sensor Array 2881 | -7/Factory | Repaired Exp. Sensor Array 2907 | -7/Factory | Repaired Imp. Flight Unit 3085 | -7/Factory | Crushed by falling debris 3097 | -7/Factory | Discovered new exit (range 14) 3101 | -7/Factory | Entered Lower Caves 3134 | -7/Lower Caves | Spotted B-75 Beast 3161 | -7/Lower Caves | Discovered new exit (range 5) 3175 | -7/Lower Caves | Entered another Lower Caves area 3215 | -7/Lower Caves | Spotted B-75 Beast 3241 | -7/Lower Caves | Encountered a Warlord checkpoint 3288 | -7/Lower Caves | Discovered new exit (range 15) 3318 | -7/Lower Caves | Entered Data Miner 3318 | -7/Data Miner | Discovered new exit (range 6) 3324 | -7/Data Miner | Met Data Miner 3333 | -7/Data Miner | Learned location of Section 7 (-2) 3333 | -7/Data Miner | Acquired the access code to Warlord's prototype stash 3337 | -7/Data Miner | Received God Mode back door access code from Data Miner 3349 | -7/Data Miner | Entered Proximity Caves 3353 | -6/Proximity Caves | Learned Factory security intel 3387 | -6/Proximity Caves | Build established: Mutant 3388 | -6/Proximity Caves | Discovered new exit (range 5) 3389 | -6/Proximity Caves | Attracted the attention of an 0b10 checkpoint 3391 | -6/Proximity Caves | Entered Factory 3391 | -6/Factory | Accompanied by 1 ally 3391 | -6/Factory | Evolved 2 slots: Utility x2 3392 | -6/Factory | Escorted by Enhanced Grunt 3589 | -6/Factory | Local fabrication network quarantined 3659 | -6/Factory | Discovered new exit (range 3) 3660 | -6/Factory | Identified exit to Factory 3660 | -6/Factory | Entered another Factory area 3660 | -5/Factory | Evolved 2 slots: Utility x2 3671 | -5/Factory | Lost 3 parts (1p1n1w) 3694 | -5/Factory | Incoming investigation squad redirected 3723 | -5/Factory | Found Powered Armor 3753 | -5/Factory | Identified exit to Upper Caves 3753 | -5/Factory | Identified exit to Factory 3758 | -5/Factory | Entered another Factory area 3758 | -4/Factory | Evolved 2 slots: Utility x2 3766 | -4/Factory | Spotted B-86 Titan 3884 | -4/Factory | Identified exit to Upper Caves 3884 | -4/Factory | Identified exit to Extension 3893 | -4/Factory | Discovered new exit (range 4) 3894 | -4/Factory | Identified exit to Research 3930 | -4/Factory | Entered Extension 3947 | -4/Extension | Lost 4 parts (1n3u) 3967 | -4/Extension | Spotted B-86 Titan 3968 | -4/Extension | Spotted B-86 Titan 4002 | -4/Extension | Discovered exit to Research (range 20) 4002 | -4/Extension | Discovered new exit (range 20) 4009 | -4/Extension | Identified exit to Cetus 4009 | -4/Extension | Entered Cetus 4014 | -4/Cetus | Spotted Cetus Guard 4014 | -4/Cetus | Spotted Cetus Guard 4015 | -4/Cetus | Spotted Cetus Guard 4015 | -4/Cetus | Spotted Cetus Guard 4031 | -4/Cetus | Discovered new exit (range 20) 4037 | -4/Cetus | Identified exit to Archives 4038 | -4/Cetus | Entered Archives 4043 | -4/Archives | Met Zhirov 4044 | -4/Archives | Discovered new exit (range 20) 4045 | -4/Archives | Unable to access archive contents 4048 | -4/Archives | Discovered new exit (range 20) 4049 | -4/Archives | Reinforcements dispatched to Archives 4049 | -4/Archives | Read partially decrypted archive contents 4094 | -4/Archives | Reinforcements dispatched to Archives 4096 | -4/Archives | Zhirov warped through subspace 4114 | -4/Archives | Zhirov detonated Archives 4115 | -4/Archives | Core integrity fell below 50% 4115 | -4/Archives | Identified exit to Hub_04(d) 4115 | -4/Archives | Entered Hub_04(d) 4115 | -4/Hub_04(d) | Self-destructed Last Messages --------------- 04096_ Slug penetrates Perun. 04096_ G-67 Veteran misfires. 04097_ Perun warps through subspace. 04114_ Archive Terminal disabled. 04114_ Archive Hub disabled. 04114_ G-67 Veteran destroyed. 04114_ O-32 Director destroyed. 04114_ Archive Hub disabled. 04114_ H-77 Assassin destroyed. 04114_ O-32 Director destroyed. 04114_ I-47 Archangel destroyed. 04114_ Archive Terminal disabled. 04114_ Y-64 Sentinel destroyed. 04114_ G-67 Veteran destroyed. 04114_ Imp. Cesium-ion Thruster destroyed. 04114_ Y-64 Sentinel destroyed. 04115_ The unstable cave ceiling collapses. 04115_ EXIT=IDENTIFIED: HUB_04(D) LOCATION=HUB_04(D) GOAL=ESCAPE Map ----- +----------------------------------------------------+ | | | | | | | | | ????????????????????????????????????????????? | | ????????????????????????????????????????????? | | ????????????????????????????????????????????? | | ????????????????????????????????????????????? | | ????????????????????????????????????????????? | | ????????????????????????????????????????????? | | ????????????????????????????????????????????? | | ????????????????????????????????????????????? | | ????????????????????????????????????????????? | | ????????????????????????????????????????????? | | ????????????????????????????????????????????? | | ????????????????????????????????????????????? | | ????????????????????????????????????????????? | | ????????????????????????????????????????????? | | ????????????????????????????????????????????? | | ????????????????????????????????????????????? | | ????????????????????????????????????????????? | | ????????????????????????????????????????????? | | ????????????????????????????????????????????? | | ??????????????????##################????????? | | ??????????????????# ????? | | ??????????????????# @ ????? | | ??????????????????# ????? | | ??????????????????######+###########????????? | | ????????????????????????????????????????????? | | ????????????????????????????????????????????? | | ????????????????????????????????????????????? | | ????????????????????????????????????????????? | | ????????????????????????????????????????????? | | ????????????????????????????????????????????? | | ????????????????????????????????????????????? | | ????????????????????????????????????????????? | | ????????????????????????????????????????????? | | ????????????????????????????????????????????? | | ????????????????????????????????????????????? | | ????????????????????????????????????????????? | | ????????????????????????????????????????????? | | ????????????????????????????????????????????? | | ????????????????????????????????????????????? | | ????????????????????????????????????????????? | | ????????????????????????????????????????????? | | ????????????????????????????????????????????? | | ????????????????????????????????????????????? | | ????????????????????????????????????????????? | | ????????????????????????????????????????????? | | ????????????????????????????????????????????? | +----------------------------------------------------+ Best States ------------- Heat Dissipation 44 Energy Generation 15 Energy Capacity 265 Matter Stores 300 Matter Capacity 300 Sight Range 20 Robot Scan Range 20 Terrain Scan Range 16 Terrain Scan Density 210 Armor Coverage 300 Utility Shielding 66 Evasion (%) 64 Targeting Accuracy 6 Launcher Accuracy 20 Recoil Reduction 3 Defensive Hacking 20 Item Schematics ----------------- Huge Storage Unit | -10/Materials | Hacked Combat Drone Bay | -7/Data Miner | Free Lgt. Regenerative Plating | -7/Data Miner | Free Exp. Flexi-carbon Leg | -7/Data Miner | Free Cmb. Gravmag System | -7/Data Miner | Free Triangulator | -7/Data Miner | Free Exp. Targeting Computer | -7/Data Miner | Free Cloaking Device | -7/Data Miner | Free Robot Schematics ------------------ S-27 Virus | -7/Data Miner | Free G-50 Soldier | -7/Data Miner | Free X-72 Disruptor | -7/Data Miner | Free H-66 Slayer | -7/Data Miner | Free I-36 Angel | -7/Data Miner | Free Fabricated ------------ Nothing Alien Tech Used ----------------- None Achievements -------------- None Challenges ------------ None Game ------ Seed ProtonSmartbombScrap Manual? 1 Play Time 00:46:58 Cumulative 416.0 hours Start 2021.08.27 @ 19:17:05 End 2021.08.27 @ 20:21:09 Sessions 1 Manual Loads 0 Difficulty Rogue Special Mode None Game No. 399 Rogue 184 Adventurer 112 Explorer 103 Win Type - Total 29 Types 21/0/5/2/0/0/0/1/0 Lore% 87 Gallery% 90 Achievement% 76 Wizard Run 0 Options --------- ASCII 0 Keyboard 0 Movement Numpad Keybinds 0 Fullscreen 1 Font 18/TerminusBold Map View 76x50 Tactical HUD 1 Map Filters NONE Filters NONE Steam 1 RUN: 41f9b52a-4c14-4014-90d9-f2232a7ebe97